bitfinex-derivatives/quotes_SOLF0:USTF0_20250413
["timestamp","ask_amount","ask_price","bid_price","bid_amount"]
[1744507006580,0.05701644,133.46,133.43,0.04913463]
[1744507007177,0.05701644,133.46,133.45,7.4947]
[1744507007372,7.2966574,133.54,133.44,7.2966574]
[1744507007576,7.4914,133.52,133.48,7.493]
[1744507007778,28.28,133.53,133.48,7.493]
[1744507008082,7.4917,133.51,133.48,7.493]
[1744507008477,7.54416545,133.51,133.48,7.54238719]
[1744507008876,0.05246545,133.51,133.48,0.04938719]
[1744507009083,35.5766574,133.5,133.48,0.04938719]
[1744507009582,7.4925,133.49,133.48,0.04938719]
[1744507010279,0.05246545,133.51,133.48,0.04938719]
[1744507010676,0.05246545,133.51,133.48,7.34604459]
[1744507010881,0.05246545,133.51,133.48,0.04938719]
[1744507011982,0.05246545,133.51,133.49,7.4925]
[1744507012184,0.05246545,133.51,133.48,0.04938719]
[1744507012380,35.5566574,133.5,133.48,0.04938719]
[1744507012686,35.5566574,133.5,133.43,2.1101]
[1744507013784,0.05444274,133.48,133.45,7.54461896]
[1744507014186,0.05444274,133.48,133.45,0.05041896]
[1744507014383,0.05444274,133.48,133.46,7.4938]
[1744507015582,0.05444274,133.48,133.45,7.54501896]
[1744507017785,7.54764274,133.48,133.45,7.54501896]
[1744507017974,28.26,133.47,133.45,0.05041896]
[1744507018478,35.7539,133.47,133.45,0.05041896]
[1744507021083,7.4942,133.46,133.45,0.05041896]
[1744507021277,7.2966574,133.46,133.39,4.0861]
[1744507021481,9.3503574,133.46,133.39,4.0861]
[1744507021677,35.7542,133.47,133.43,7.4956]
[1744507021881,28.26,133.47,133.43,7.4956]
[1744507022080,28.26,133.47,133.41,7.2966574]
[1744507022282,0.04931566,133.45,133.43,7.34797873]
[1744507022484,28.26,133.5,133.45,7.2966574]
[1744507022781,28.26,133.53,133.45,7.2966574]
[1744507022987,7.4909,133.52,133.45,7.2966574]
[1744507023588,0.05608524,133.5,133.47,0.05033714]
[1744507023790,0.05608524,133.5,133.48,7.19011014]
[1744507023992,0.05608524,133.5,133.49,14.68261014]
[1744507024290,0.05608524,133.5,133.49,7.19011014]
[1744507024488,0.05608524,133.5,133.49,14.68261014]
[1744507024891,28.26,133.53,133.49,7.19011014]
[1744507025093,28.26,133.53,133.5,14.68151014]
[1744507025293,35.7504,133.53,133.51,7.06678749]
[1744507025501,28.26,133.53,133.52,7.06863689]
[1744507027396,28.26,133.53,133.52,14.55943689]
[1744507027597,0.05140049,133.54,133.52,14.55943689]
[1744507027900,0.05140049,133.54,133.52,7.4908]
[1744507029002,0.05140049,133.54,133.53,7.4903]
[1744507029703,0.05140049,133.54,133.53,14.55494955]
[1744507030102,0.05140049,133.54,133.53,7.4903]
[1744507030499,0.05140049,133.54,133.53,14.55474718]
[1744507031101,0.05140049,133.54,133.53,7.4903]
[1744507031397,0.05140049,133.54,133.53,14.55291319]
[1744507032600,0.05140049,133.54,133.53,7.05784553]
[1744507032801,0.05140049,133.54,133.51,0.05147928]
[1744507033000,0.05140049,133.54,133.52,7.05892415]
[1744507033202,0.05140049,133.54,133.51,0.05147928]
[1744507033403,0.05140049,133.54,133.52,7.05679548]
[1744507033600,7.54140049,133.54,133.51,0.05147928]
[1744507033800,7.54140049,133.54,133.52,7.05491109]
[1744507034000,7.54140049,133.54,133.51,0.05147928]
[1744507035906,7.34805789,133.54,133.51,0.05147928]
[1744507036106,7.2966574,133.52,133.42,30.2686]
[1744507036403,7.2966574,133.48,133.43,7.06097201]
[1744507036704,35.5566574,133.48,133.44,7.06097201]
[1744507036905,43.0498574,133.48,133.45,7.06097201]
[1744507037115,43.0498574,133.48,133.44,7.4951]
[1744507037306,35.60736163,133.48,133.45,7.11141144]
[1744507037501,35.60736163,133.48,133.45,0.0486468]
[1744507038203,7.4941,133.47,133.45,0.0486468]
[1744507039308,35.60736163,133.48,133.45,0.0486468]
[1744507041408,7.4936,133.47,133.45,0.0486468]
[1744507041612,28.31070423,133.48,133.45,7.5432468]
[1744507042905,35.80380423,133.48,133.45,0.0486468]
[1744507043107,35.60736163,133.48,133.45,0.0486468]
[1744507043609,7.4939,133.47,133.45,0.0486468]
[1744507045508,7.4942,133.46,133.45,0.0486468]
[1744507046006,7.4957,133.44,133.4,7.4974]
[1744507046206,28.26,133.44,133.41,6.94368584]
[1744507046405,28.26,133.44,133.42,6.94368584]
[1744507046612,35.5566574,133.44,133.37,7.2966574]
[1744507046804,7.2966574,133.42,133.39,6.94085504]
[1744507047002,7.2966574,133.4,133.35,2.0762]
[1744507047211,7.4982,133.39,133.36,6.94724663]
[1744507047407,28.26,133.38,133.36,0.05452984]
[1744507049213,7.2966574,133.37,133.36,0.05452984]
[1744507049713,14.7958574,133.37,133.36,0.05452984]
[1744507050210,7.5008,133.35,133.31,2.0553]
[1744507050523,35.7608,133.35,133.31,2.0553]
[1744507050815,7.501,133.34,133.31,2.0553]
[1744507051016,7.2966574,133.33,133.26,9.3015574]
[1744507051216,28.28,133.32,133.27,1.9475]
[1744507051417,0.05755342,133.31,133.29,0.05625672]
[1744507052212,0.05755342,133.31,133.3,7.5032]
[1744507052418,28.28,133.35,133.3,7.2966574]
[1744507052618,622.0,133.39,133.32,7.2966574]
[1744507052914,622.0,133.39,133.36,7.4994]
[1744507053306,629.2966574,133.39,133.36,7.4994]
[1744507053507,629.2966574,133.39,133.36,7.55365005]
[1744507053508,622.04848628,133.39,133.36,7.55365005]
[1744507053706,629.54658628,133.39,133.36,7.55365005]
[1744507054218,622.04848628,133.39,133.36,7.55365005]
[1744507054416,622.04848628,133.39,133.36,0.05425005]
[1744507054816,629.54688628,133.39,133.36,0.05425005]
[1744507055017,629.34514368,133.39,133.36,0.05425005]
[1744507055915,7.4992,133.37,133.36,0.05425005]
[1744507056113,7.2966574,133.37,133.29,9.2473574]
[1744507056309,28.28,133.36,133.29,9.2473574]
[1744507056509,28.28,133.36,133.31,7.2966574]
[1744507057218,0.05479999,133.35,133.33,7.5012]
[1744507057820,0.05479999,133.35,133.32,7.54972154]
[1744507058419,0.05479999,133.35,133.32,0.04812154]
[1744507059624,0.05479999,133.35,133.32,7.54972154]
[1744507059919,0.05479999,133.35,133.32,0.04812154]
[1744507061120,0.05479999,133.35,133.32,7.54992154]
[1744507061321,0.05479999,133.35,133.32,0.04812154]
[1744507061816,0.05479999,133.35,133.33,7.501]
[1744507062017,0.05479999,133.35,133.32,0.04812154]
[1744507062419,7.35145739,133.35,133.32,0.04812154]
[1744507062821,0.05479999,133.35,133.32,0.04812154]
[1744507063624,0.05479999,133.35,133.34,7.5009]
[1744507069227,0.05479999,133.35,133.33,7.5014]
[1744507069428,0.05479999,133.35,133.32,0.04812154]
[1744507069627,7.35145739,133.35,133.32,0.04812154]
[1744507071128,7.5015,133.34,133.32,0.04812154]
[1744507071327,7.35145739,133.35,133.32,0.04812154]
[1744507072430,7.5009,133.34,133.32,0.04812154]
[1744507072733,28.36,133.33,133.32,0.04812154]
[1744507074437,43.1581574,133.33,133.32,0.04812154]
[1744507074931,35.6566574,133.33,133.25,35.5766574]
[1744507075133,7.5024,133.32,133.28,7.5041]
[1744507075333,35.6566574,133.33,133.25,35.5766574]
[1744507075529,7.2966574,133.31,133.25,28.28]
[1744507076031,35.8635,133.3,133.27,0.04789954]
[1744507076230,0.05662544,133.29,133.27,0.04789954]
[1744507077738,7.56042544,133.29,133.27,0.04789954]
[1744507078032,7.35328284,133.29,133.27,0.04789954]
[1744507078233,7.35328284,133.29,133.21,1.9655]
[1744507078432,7.5069,133.24,133.21,1.9655]
[1744507078735,35.8669,133.24,133.21,1.9655]
[1744507079135,28.36,133.24,133.17,36.64239836]
[1744507079335,28.41340312,133.24,133.21,0.05499135]
[1744507080127,7.5077,133.22,133.21,0.05499135]
[1744507081238,7.5096,133.19,133.17,34.53259836]
[1744507081540,7.2966574,133.18,133.17,34.53259836]
[1744507081735,7.2966574,133.18,133.16,69.06519673]
[1744507081935,7.2966574,133.18,133.15,103.59779509]
[1744507082137,7.2966574,133.16,133.15,103.59779509]
[1744507082438,35.6766574,133.16,133.15,103.59779509]
[1744507083041,43.1880574,133.16,133.14,0.05399965]
[1744507083635,7.5116,133.15,133.14,0.05399965]
[1744507084136,7.5133,133.13,133.1,47.83003227]
[1744507084333,35.6766574,133.12,133.1,47.83003227]
[1744507084537,28.38,133.11,133.1,47.83003227]
[1744507086245,28.38,133.11,133.09,7.56586598]
[1744507086740,28.38,133.11,133.09,0.05126598]
[1744507086935,35.6766574,133.11,133.09,0.05126598]
[1744507087136,7.5145,133.1,133.09,0.05126598]
[1744507087738,28.38,133.11,133.09,0.05126598]
[1744507088335,35.8939,133.11,133.09,0.05126598]
[1744507088542,28.38,133.11,133.09,0.05126598]
[1744507089028,28.38,133.11,133.03,7.2966574]
[1744507089232,7.2966574,133.1,133.02,1.9502]
[1744507089534,7.2966574,133.06,133.01,2.0155]
[1744507089735,28.4,133.05,132.99,9.2468574]
[1744507090033,28.4,133.05,132.99,1.9502]
[1744507090339,0.04734093,133.03,133.01,0.05008784]
[1744507090943,28.4,133.05,133.01,7.34674524]
[1744507091143,28.4,133.05,133.02,2.1198]
[1744507091741,28.4,133.05,133.04,7.5178]
[1744507092046,0.05087691,133.06,133.04,7.5178]
[1744507092444,0.05087691,133.06,133.04,7.56997859]
[1744507092644,0.05087691,133.06,133.05,7.5173]
[1744507092944,28.4,133.08,133.05,7.2966574]
[1744507093148,28.4,133.08,133.04,0.05217859]
[1744507093543,28.4,133.08,133.07,7.5161]
[1744507102554,28.4,133.08,133.06,7.5165]
[1744507103154,28.4,133.08,133.07,7.5161]
[1744507107160,0.05155743,133.09,133.07,7.5161]
[1744507107360,28.39155743,133.09,133.07,7.5161]
[1744507107556,28.39155743,133.09,133.07,7.56659662]
[1744507108460,28.39155743,133.09,133.08,7.5156]
[1744507112258,28.39155743,133.09,133.02,2.1198]
[1744507112461,7.2966574,133.05,132.99,2.1336]
[1744507112862,28.34,133.06,133.0,7.2966574]
[1744507113064,28.34,133.06,133.02,7.2966574]
[1744507113362,28.34,133.09,133.04,7.2966574]
[1744507113562,28.34,133.09,133.05,4.2686]
[1744507113763,0.05453056,133.08,133.05,4.2686]
[1744507113967,0.05453056,133.08,133.06,0.04726369]
[1744507114966,0.05453056,133.08,133.07,7.5157]
[1744507117569,0.05453056,133.08,133.06,7.56376369]
[1744507119167,7.57033056,133.08,133.06,0.04726369]
[1744507119375,7.2966574,133.07,133.06,0.04726369]
[1744507119671,7.2966574,133.07,132.98,41.8490574]
[1744507119971,7.2966574,133.03,132.98,6.2124]
[1744507120163,35.6366574,133.03,132.98,6.2124]
[1744507120364,43.1552574,133.03,132.98,6.2124]
[1744507120568,35.6366574,133.03,132.98,6.2124]
[1744507120779,35.6366574,133.03,132.99,0.05586194]
[1744507120780,7.2966574,133.01,132.99,0.05586194]
[1744507121071,28.34,133.0,132.96,46.3320929]
[1744507121266,7.2966574,132.97,132.96,46.3320929]
[1744507121470,43.1584574,132.97,132.96,46.3320929]
[1744507121771,35.6366574,132.97,132.96,46.3320929]
[1744507122272,0.05262135,132.98,132.96,46.3320929]
[1744507122572,28.34,133.0,132.93,7.2966574]
[1744507122874,0.0505345,132.98,132.96,7.57109762]
[1744507123467,0.0505345,132.98,132.97,7.5218]
[1744507123773,28.36,133.04,132.97,7.2966574]
[1744507123975,7.2966574,133.01,132.97,1.9493]
[1744507124374,28.36,133.0,132.97,1.9493]
[1744507124667,28.36,133.0,132.97,9.471]
[1744507124873,28.41519159,133.0,132.97,9.52579789]
[1744507125275,35.93539159,133.0,132.97,9.52579789]
[1744507125475,35.93539159,133.0,132.97,7.57649789]
[1744507126477,28.41519159,133.0,132.97,0.05479789]
[1744507126776,0.05519159,133.0,132.97,7.35145529]
[1744507126975,28.36,133.03,132.97,7.35145529]
[1744507127276,35.6566574,133.03,132.97,0.05479789]
[1744507127470,7.5199,133.01,132.97,7.57619789]
[1744507127672,7.2966574,133.01,132.97,0.05479789]
[1744507127976,28.36,133.0,132.97,0.05479789]
[1744507128172,28.41032026,133.0,132.97,0.05479789]
[1744507129772,28.41032026,133.0,132.97,7.57619789]
[1744507131978,28.41032026,133.0,132.97,0.05479789]
[1744507132178,7.2966574,132.99,132.97,0.05479789]
[1744507132474,7.5227,132.96,132.92,7.5244]
[1744507132779,35.6566574,132.96,132.89,2.0146]
[1744507133179,7.523,132.95,132.91,7.5249]
[1744507133480,7.2966574,132.94,132.89,2.0146]
[1744507133676,35.8841,132.93,132.92,0.05168529]
[1744507133873,35.8841,132.93,132.85,35.6566574]
[1744507133874,28.36,132.93,132.85,30.4196]
[1744507134076,7.2966574,132.91,132.85,2.0596]
[1744507134280,14.8229574,132.89,132.85,9.588]
[1744507134477,35.6566574,132.89,132.85,2.0596]
[1744507134678,28.36,132.89,132.85,2.0596]
[1744507134878,28.36,132.89,132.86,7.5276]
[1744507135074,0.05011846,132.88,132.86,7.58191068]
[1744507135280,0.05011846,132.88,132.86,0.05431068]
[1744507136282,0.05011846,132.88,132.86,7.58211068]
[1744507136581,0.05011846,132.88,132.86,0.05431068]
[1744507137378,7.2966574,132.87,132.86,0.05431068]
[1744507138589,0.05011846,132.88,132.86,0.05431068]
[1744507139288,0.05011846,132.88,132.86,7.58231068]
[1744507140788,0.05011846,132.88,132.86,0.05431068]
[1744507141290,0.05011846,132.88,132.86,7.58191068]
[1744507142585,0.05011846,132.88,132.86,0.05431068]
[1744507143493,7.2966574,132.87,132.86,0.05431068]
[1744507143887,14.8241574,132.87,132.86,0.05431068]
[1744507144192,0.05011846,132.88,132.86,0.05431068]
[1744507144391,7.5275,132.87,132.86,0.05431068]
[1744507145494,14.8241574,132.87,132.86,0.05431068]
[1744507145693,14.8241574,132.87,132.83,7.5293]
[1744507145893,28.38,132.86,132.81,4.1418]
[1744507146094,28.38,132.86,132.85,7.5286]
[1744507146390,28.38,132.86,132.81,4.1418]
[1744507146594,28.38,132.86,132.83,7.5294]
[1744507146794,0.05360119,132.85,132.82,0.05472789]
[1744507147190,0.05360119,132.85,132.82,7.58462789]
[1744507147386,7.35025859,132.85,132.82,0.05472789]
[1744507149300,14.8263574,132.83,132.82,0.05472789]
[1744507149496,35.6766574,132.83,132.82,0.05472789]
[1744507150701,28.38,132.83,132.82,0.05472789]
[1744507151400,35.6766574,132.83,132.76,4.0628]
[1744507151595,7.2966574,132.81,132.76,1.9575]
[1744507151802,28.38,132.8,132.74,9.4059574]
[1744507151996,28.38,132.8,132.76,7.2966574]
[1744507152201,28.38,132.8,132.77,2.0322]
[1744507152597,28.43664104,132.8,132.79,7.532]
[1744507153396,0.05664104,132.8,132.79,7.532]
[1744507153601,28.4,132.83,132.82,7.5303]
[1744507155604,0.04787481,132.84,132.83,7.5297]
[1744507158404,28.4,132.85,132.84,7.5292]
[1744507158605,28.4,132.88,132.82,4.1913]
[1744507159205,28.4,132.88,132.82,11.4879574]
[1744507159506,0.05600518,132.86,132.84,0.05393141]
[1744507159912,28.4,132.85,132.84,0.05393141]
[1744507162010,28.4,132.85,132.84,7.58313141]
[1744507162709,28.4,132.85,132.84,0.05393141]
[1744507169320,33.11633482,132.85,132.84,0.05393141]
[1744507170320,1.31031497,132.91,132.84,33.17026623]
[1744507170520,4.71633482,132.92,132.87,4.71633482]
[1744507171018,4.71633482,132.92,132.89,7.5258]
[1744507171322,28.4,132.93,132.89,7.5258]
[1744507171614,0.05782397,132.92,132.89,0.05190985]
[1744507172321,7.41893233,132.92,132.89,0.05190985]
[1744507172622,7.41893233,132.92,132.89,7.57810985]
[1744507173223,7.41893233,132.92,132.9,7.5257]
[1744507173426,7.41893233,132.92,132.89,0.05190985]
[1744507174023,7.41893233,132.92,132.9,7.5254]
[1744507175730,0.05782397,132.92,132.9,7.5254]
[1744507175924,7.58252397,132.92,132.89,7.57810985]
[1744507176822,7.36110836,132.91,132.89,0.05190985]
[1744507177024,35.74110836,132.9,132.82,2.1368]
[1744507177229,7.36110836,132.84,132.79,36.5174522]
[1744507177428,43.26950836,132.86,132.83,7.5294]
[1744507178125,43.32075415,132.86,132.83,7.57874619]
[1744507179232,35.79235415,132.86,132.83,0.04934619]
[1744507179431,28.43124579,132.86,132.83,0.04934619]
[1744507180027,28.43124579,132.86,132.84,7.5292]
[1744507183438,35.79235415,132.86,132.83,0.04934619]
[1744507183730,14.89030836,132.84,132.83,0.04934619]
[1744507188039,35.79235415,132.86,132.83,0.04934619]
[1744507188839,28.43124579,132.86,132.83,0.04934619]
[1744507189338,28.43124579,132.86,132.85,7.5286]
[1744507190140,0.05124579,132.86,132.85,7.5286]
[1744507190337,28.4,132.91,132.88,7.5267]
[1744507191438,28.45147237,132.91,132.88,7.57618846]
[1744507191640,28.45147237,132.91,132.89,7.5262]
[1744507191840,28.45147237,132.91,132.88,0.04948846]
[1744507192642,28.45147237,132.91,132.89,7.5262]
[1744507194143,28.45147237,132.91,132.88,0.04948846]
[1744507194643,7.36110836,132.9,132.88,0.04948846]
[1744507195349,7.36110836,132.9,132.88,7.57628846]
[1744507195842,7.36110836,132.9,132.88,0.04948846]
[1744507196139,7.5263,132.89,132.88,0.04948846]
[1744507196342,14.72221672,132.9,132.79,9.42060836]
[1744507196643,7.36110836,132.85,132.79,2.0595]
[1744507196846,7.36110836,132.83,132.79,2.0595]
[1744507197044,35.74110836,132.83,132.79,2.0595]
[1744507197344,43.27120836,132.83,132.79,9.5913]
[1744507197539,0.05381877,132.82,132.8,0.05516825]
[1744507197939,7.58461877,132.82,132.8,0.05516825]
[1744507198746,7.5309,132.81,132.8,0.05516825]
[1744507199041,0.05381877,132.82,132.8,0.05516825]
[1744507200446,0.05381877,132.82,132.8,7.58626825]
[1744507200844,0.05381877,132.82,132.8,0.05516825]
[1744507201842,7.58421877,132.82,132.8,0.05516825]
[1744507202046,0.05381877,132.82,132.8,0.05516825]
[1744507202341,7.5309,132.81,132.8,0.05516825]
[1744507202547,0.05381877,132.82,132.8,0.05516825]
[1744507203750,7.58431877,132.82,132.8,0.05516825]
[1744507203951,0.05381877,132.82,132.8,0.05516825]
[1744507204247,7.5309,132.81,132.8,0.05516825]
[1744507204450,9.38542713,132.82,132.75,2.0352]
[1744507204650,7.36110836,132.8,132.75,2.0352]
[1744507205552,0.04955102,132.79,132.76,0.0525848]
[1744507205751,28.38,132.78,132.76,0.0525848]
[1744507206250,28.38,132.78,132.76,7.41369316]
[1744507206450,0.04955102,132.79,132.76,7.41369316]
[1744507206845,0.04955102,132.79,132.77,7.5331]
[1744507207045,0.04955102,132.79,132.76,7.41369316]
[1744507207246,0.04955102,132.79,132.76,0.0525848]
[1744507207747,28.4,132.78,132.76,0.0525848]
[1744507208550,0.04955102,132.79,132.76,0.0525848]
[1744507208750,28.4,132.77,132.76,0.0525848]
[1744507209751,28.4,132.77,132.66,7.36110836]
[1744507209952,7.36110836,132.76,132.68,7.36110836]
[1744507210149,14.89610836,132.74,132.7,7.5369]
[1744507210351,28.4,132.73,132.66,7.36110836]
[1744507210757,0.04955747,132.71,132.68,7.58217692]
[1744507211053,0.04955747,132.71,132.68,0.04447692]
[1744507211654,0.04955747,132.71,132.69,7.5375]
[1744507212644,11.40910836,132.79,132.7,7.36110836]
[1744507212844,28.4,132.79,132.72,7.36110836]
[1744507213053,35.9323,132.79,132.75,7.5339]
[1744507213253,35.76110836,132.79,132.75,7.5339]
[1744507213452,35.76110836,132.79,132.71,9.35050836]
[1744507213656,7.5327,132.78,132.74,7.5345]
[1744507213953,0.05608602,132.76,132.74,7.58799075]
[1744507214950,0.05608602,132.76,132.75,7.5343]
[1744507215657,0.05608602,132.76,132.74,7.58819075]
[1744507216257,0.05608602,132.76,132.75,7.5343]
[1744507217355,28.4,132.79,132.78,7.5326]
[1744507217758,28.4,132.79,132.75,7.5339]
[1744507218054,28.4,132.79,132.71,32.3349]
[1744507218255,28.4,132.79,132.76,7.5334]
[1744507218659,28.44986793,132.79,132.76,7.5334]
[1744507220257,35.98186793,132.79,132.76,7.5334]
[1744507220559,28.44986793,132.79,132.77,7.5331]
[1744507220859,28.44986793,132.79,132.77,7.58298553]
[1744507221958,28.44986793,132.79,132.77,0.04988553]
[1744507222158,35.98196793,132.79,132.77,0.04988553]
[1744507222460,28.44986793,132.79,132.77,7.58298553]
[1744507222663,28.44986793,132.79,132.77,0.04988553]
[1744507224860,28.44986793,132.79,132.77,7.58298553]
[1744507227862,35.98186793,132.79,132.77,0.04988553]
[1744507228061,28.44986793,132.79,132.77,0.04988553]
[1744507229263,28.44986793,132.79,132.77,7.58298553]
[1744507229866,47.78533625,132.79,132.77,0.04988553]
[1744507230165,40.25323625,132.79,132.77,0.04988553]
[1744507231168,47.78563625,132.79,132.77,0.04988553]
[1744507231367,40.25323625,132.79,132.77,0.04988553]
[1744507232968,28.44986793,132.79,132.77,0.04988553]
[1744507233267,0.04986793,132.79,132.77,0.04988553]
[1744507233765,0.04986793,132.79,132.78,7.5326]
[1744507234970,1225.72924361,132.98,132.78,23.56156832]
[1744507235271,14.90051597,132.84,132.78,4.2182]
[1744507235565,7.37131597,132.82,132.74,358.0]
[1744507235866,35.77131597,132.82,132.76,4.2182]
[1744507236070,0.05634444,132.79,132.77,0.05643641]
[1744507236764,0.05634444,132.79,132.78,7.5326]
[1744507236964,28.4,132.82,132.77,0.05643641]
[1744507237268,7.37131597,132.84,132.77,0.05643641]
[1744507237470,28.4,132.85,132.77,7.42775238]
[1744507237665,28.4,132.85,132.77,7.37131597]
[1744507237971,28.4,132.85,132.83,7.5294]
[1744507238362,28.45448364,132.85,132.83,7.5294]
[1744507238566,0.05448364,132.85,132.84,7.5292]
[1744507239173,0.05448364,132.85,132.83,0.05238691]
[1744507239174,0.05448364,132.85,132.83,7.58208691]
[1744507239470,7.42579961,132.85,132.83,7.58208691]
[1744507239770,7.42579961,132.85,132.83,0.05238691]
[1744507239969,7.42579961,132.85,132.83,7.58188691]
[1744507240370,7.42579961,132.85,132.84,7.5292]
[1744507240874,0.05448364,132.85,132.84,7.5292]
[1744507253483,8.364e-05,132.85,132.84,7.5292]
[1744507254287,8.364e-05,132.85,132.84,13.6284]
[1744507263387,8.364e-05,132.85,132.84,7.5292]
[1744507266388,7.37131597,132.94,132.93,7.5239]
[1744507266584,30.524,132.95,132.88,7.37131597]
[1744507267195,7.37131597,132.93,132.87,2.0431]
[1744507267493,28.38,132.95,132.88,7.37131597]
[1744507267694,7.473e-05,132.91,132.89,28.43177621]
[1744507267895,7.473e-05,132.91,132.9,7.5258]
[1744507272495,28.36,132.98,132.97,7.5218]
[1744507272886,30.4584,133.01,132.94,7.37131597]
[1744507273396,7.37131597,133.0,132.93,2.1219]
[1744507273699,0.05461447,132.99,132.97,7.5214]
[1744507273901,0.05461447,132.99,132.96,0.04903482]
[1744507274100,0.05461447,132.99,132.98,7.5212]
[1744507275595,0.05461447,132.99,132.96,0.04903482]
[1744507276298,0.05461447,132.99,132.98,7.5212]
[1744507276995,37.84861597,133.04,133.03,7.5184]
[1744507277298,28.36,133.04,133.03,7.5184]
[1744507277697,28.36,133.07,132.99,7.37131597]
[1744507278298,0.05427403,133.04,133.02,0.05234902]
[1744507278803,0.05427403,133.04,133.03,7.5184]
[1744507280106,7.403e-05,133.04,133.03,7.5184]
[1744507286402,7.403e-05,133.04,133.03,14.88971597]
[1744507287206,7.403e-05,133.04,133.03,7.5184]
[1744507287807,7.403e-05,133.04,133.02,0.05234902]
[1744507288311,7.403e-05,133.04,133.03,7.5184]
[1744507293913,7.403e-05,133.04,133.03,14.88971597]
[1744507301526,4.1349,133.12,133.03,9.47921597]
[1744507301718,4.1349,133.12,133.06,7.37131597]
[1744507302517,0.04816879,133.1,133.09,7.515]
[1744507306621,603.11131597,133.16,133.08,7.42863817]
[1744507306825,603.11131597,133.16,133.08,7.37131597]
[1744507307119,7.37131597,133.14,133.07,28.4]
[1744507307321,7.37131597,133.12,133.07,28.4]
[1744507307517,7.37131597,133.1,133.02,358.0]
[1744507307724,35.77131597,133.1,133.02,28.4]
[1744507308022,0.04964688,133.07,133.05,0.04984919]
[1744507308225,7.37131597,133.06,133.05,0.04984919]
[1744507308423,7.37131597,133.06,132.99,28.4]
[1744507308618,7.37131597,133.02,132.98,42.0432522]
[1744507309123,28.4,133.04,132.98,42.0432522]
[1744507309322,9.36811597,133.03,132.98,42.0432522]
[1744507309523,7.37131597,133.01,133.0,0.05128777]
[1744507309823,7.37131597,133.01,132.98,42.0432522]
[1744507310023,0.05657116,133.02,132.99,7.5206]
[1744507310323,0.05657116,133.02,132.98,34.5222522]
[1744507310617,0.05657116,133.02,132.96,30.5065]
[1744507311025,0.05657116,133.02,132.98,0.0517005]
[1744507311725,0.05657116,133.02,132.99,7.5201]
[1744507312526,0.05657116,133.02,133.0,7.52]
[1744507313027,0.05657116,133.02,132.99,7.5207]
[1744507314324,0.05657116,133.02,132.98,0.0517005]
[1744507314325,7.37131597,133.01,132.98,0.0517005]
[1744507314823,14.89101597,133.01,132.98,0.0517005]
[1744507315028,7.37131597,133.01,132.98,0.0517005]
[1744507315428,7.37131597,133.01,132.98,7.5725005]
[1744507315827,0.05657116,133.02,132.98,0.0517005]
[1744507316323,0.05657116,133.02,133.0,7.5198]
[1744507317224,0.05657116,133.02,133.01,7.5195]
[1744507320429,1.30836905,133.12,133.01,22.26263194]
[1744507320732,28.34,133.14,133.08,7.37131597]
[1744507321129,35.71131597,133.14,133.07,28.34]
[1744507321628,0.05215097,133.12,133.09,7.5629743]
[1744507322628,0.05215097,133.12,133.09,0.0482743]
[1744507323432,0.05215097,133.12,133.11,7.5139]
[1744507324833,28.34,133.17,133.1,35.71131597]
[1744507325035,28.34,133.17,133.1,37.70851597]
[1744507325235,28.34,133.17,133.11,2.0863]
[1744507325436,28.34,133.17,133.15,7.5113]
[1744507325840,7.37131597,133.16,133.1,28.34]
[1744507326137,7.37131597,133.14,133.12,0.05353675]
[1744507326331,0.05479566,133.14,133.12,0.05353675]
[1744507326532,0.05479566,133.14,133.13,7.5128]
[1744507326937,0.05479566,133.14,133.12,0.05353675]
[1744507327541,7.37131597,133.13,133.12,0.05353675]
[1744507327735,7.37131597,133.13,133.06,9.43851597]
[1744507328038,35.69131597,133.13,133.06,9.43851597]
[1744507328737,7.37131597,133.11,133.05,30.2674]
[1744507329040,7.37131597,133.09,133.08,0.05332256]
[1744507329236,28.32,133.1,133.08,0.05332256]
[1744507329840,35.8345,133.1,133.08,0.05332256]
[1744507330242,28.32,133.1,133.08,0.05332256]
[1744507331342,28.32,133.1,133.08,7.56882256]
[1744507331944,28.32,133.1,133.09,7.515]
[1744507332239,0.05593184,133.11,133.08,0.05332256]
[1744507332445,0.05593184,133.11,133.1,7.5145]
[1744507336251,28.32,133.16,133.09,13.71888815]
[1744507336444,28.32,133.19,133.1,1.9842]
[1744507336644,28.32,133.19,133.11,28.32]
[1744507336844,28.32,133.19,133.16,7.511]
[1744507337349,28.37366271,133.19,133.16,7.56406475]
[1744507340355,7.56316271,133.19,133.16,7.56406475]